Workbook

Sheet Financial Report-2016
A1: Financial Report as on 15th June 2016
C2: MASUM, 41-44, B-1 ,Kubera Vihar,
C3: Gadital,Hadapsar,Pune 28
C4: e-mail - masum.puneindia@gmail.com
A5: Title | C5: Parner Tribal Education Program
A6: Project Period | C6: From : 1st January 2016 To: 31st December 2016
A8: Budget Head | B8: Budget for 01.01.2016 to 31.12.2016 | C8: Grant received for 01.01.2016 to 30.06.2016 | D8: Budget consumed or Expenditure (From 01.01.2016 to 30.06.2016) | E8: Balance Budget | F8: Variance %
A9: 1 | C9: 2 | D9: 3 | E9: (2-3) | F9: 5
A10: Salary | B10: 188700 | C10: 92000 | D10: =91150-9400 -> 81750 | E10: =C10-D10 -> 10250 | F10: =E10/C10*100 -> 11.14130435
A11: Project related travel | B11: 72000 | C11: 36000 | D11: 30981 | E11: =C11-D11 -> 5019 | F11: =E11/C11*100 -> 13.94166667
A12: Aids, material and stationery | B12: 8000 | C12: 4000 | D12: 3765 | E12: 235 | F12: 5.875
A13: Training for teachers & helper | B13: 27900 | C13: 10000 | D13: 12295 | E13: -2295 | F13: -22.95
A14: Exposure visit | B14: 40000 | C14: 10000 | D14: 0 | E14: 10000 | F14: 100
A15: School Management Committees training | B15: 10000 | C15: 6000 | D15: 0 | E15: 6000 | F15: 100
A17: TOTAL | B17: =SUM(B10:B16) -> 346600 | C17: =SUM(C10:C16) -> 158000 | D17: =SUM(D10:D16) -> 128791 | E17: =SUM(E10:E16) -> 29209 | F17: =(E17/C17)*100 -> 18.48670886
A20: Total Grant Received for 01.01.2016 to 30.06.2016 | C20: 158000
A22: Total available Grant | C22: =SUM(C20:C21) -> 158000
A24: Total Expenditure as on 30.06.2016 | C24: =D17 -> 128791
A25: Total available balance as on 30.06.2016 | C25: =C22-C24 -> 29209

Sheet Sheet3
B5: Balance as on 31.12.2015
B6: Cash | C6: 16630
B7: Bank | C7: 22696
B8: Total | C8: =C7+C6 -> 39326
B9: Less: Honorarium paid to supportclass teachers as on 15.01.2016 for Nov. & Dec.,2015 | C9: 9400
B10: Total balance | C10: =C8-C9 -> 29926
